fUST/lending_fUST_20240705
["ID","MTS","AMOUNT","RATE_DAILY","PERIOD"]
[331170876,1720116658412,-500.0,0.00015342,2]
[331170877,1720116658421,-616.91,0.00015342,2]
[331170878,1720116658430,-223.710738,0.00015342,2]
[331170879,1720116658439,-561.39,0.00015342,2]
[331170880,1720116658448,-500.0,0.00015342,2]
[331170881,1720116658457,-500.0,0.00015342,2]
[331170882,1720116658466,-869.14,0.00015342,2]
[331170883,1720116658475,-500.0,0.00015342,2]
[331170884,1720116658484,-500.0,0.00015342,2]
[331170885,1720116658496,-500.0,0.00015342,2]
[331170886,1720116658505,-151.0,0.00015342,2]
[331170887,1720116658514,-2608.98,0.00015342,2]
[331170888,1720116658524,-1428.55,0.00015342,2]
[331170889,1720116658533,-500.0,0.00015342,2]
[331170890,1720116658542,-854.63,0.00015342,2]
[331170891,1720116658551,-856.117381,0.00015342,2]
[331170892,1720116658561,-856.117381,0.00015342,2]
[331170893,1720116658570,-151.0,0.00015342,2]
[331170894,1720116658580,-590.40149816,0.00015342,2]
[331170895,1720116658589,-151.0,0.00015342,2]
[331170896,1720116658598,-500.0,0.00015342,2]
[331170897,1720116658607,-937.63,0.00015342,2]
[331170898,1720116658618,-620.182383,0.00015342,2]
[331170899,1720116658627,-7574.65,0.00015342,2]
[331170900,1720116658636,-620.182383,0.00015342,2]
[331170901,1720116658646,-4805.61,0.00015342,2]
[331170902,1720116658655,-151.0,0.00015342,2]
[331170903,1720116658664,-686.89,0.00015342,2]
[331170904,1720116658673,-500.0,0.00015342,2]
[331170905,1720116658683,-2684.55,0.00015342,2]
[331170906,1720116658693,-506.12692733,0.00015342,2]
[331170907,1720116658704,-500.0,0.00015342,2]
[331170908,1720116658713,-500.0,0.00015342,2]
[331170909,1720116658723,-500.0,0.00015342,2]
[331170910,1720116658732,-6698.25,0.00015342,2]
[331170911,1720116658742,-6698.25,0.00015342,2]
[331170912,1720116658751,-500.0,0.00015342,2]
[331170913,1720116658760,-500.0,0.00015342,2]
[331170914,1720116658769,-13586.04720359,0.00015342,2]
[331170916,1720116888897,529.87541701,9.999e-05,2]
[331170917,1720116896184,337.94350614,9.999e-05,2]
[331170918,1720116956331,1850.35931318,9.999e-05,2]
[331170919,1720117006910,208.57540874,9.999e-05,2]
[331170920,1720117008790,176.67250128,9.999e-05,2]
[331170921,1720117016836,529.85654432,9.999e-05,2]
[331170922,1720117030724,195.69863572,9.999e-05,2]
[331170923,1720117046620,200.84456934,9.999e-05,2]
[331170924,1720117086063,908.33583081,9.999e-05,2]
[331170936,1720117094447,1286.25239983,9.999e-05,2]
[331170941,1720117140614,184.21308295,9.999e-05,2]
[331170944,1720117183288,195.74610265,9.999e-05,2]
[331170945,1720117184452,624.50921449,9.999e-05,2]
[331170946,1720117186058,404.67602219,9.999e-05,2]
[331170948,1720117204874,154.88383712,9.999e-05,2]
[331170958,1720117278864,216.89679489,9.999e-05,2]
[331170959,1720117308288,194.75482681,9.999e-05,2]
[331170967,1720117359698,1295.39899782,0.000225,31]
[331170987,1720117712050,504.54427832,0.00017,20]
[331170988,1720117715404,-875.30601834,0.0001192,2]
[331170989,1720117715484,-757.29214597,0.0001192,2]
[331170990,1720117740525,-907.95798163,0.0001192,2]
[331170991,1720117740621,-572.52663361,0.0001192,2]
[331170992,1720117740663,-86.98614983,0.0001192,2]
[331170996,1720117783489,1000.0,0.00022,30]
[331171595,1720117840207,-77.25365921,0.0001192,2]
[331171597,1720117840218,-190.45960035,0.0001202,2]
[331171599,1720117840227,-300.0,0.00012508,2]
[331171601,1720117840237,-24900.0,0.00012509,2]
[331171603,1720117840248,-495.45572168,0.00013,2]
[331171605,1720117840258,-2378.29747323,0.00013498,2]
[331171607,1720117840268,-1863.06567021,0.00013598,2]
[331171609,1720117840278,-2000.0,0.00013598,2]
[331171611,1720117840288,-1863.0656702,0.00013667,2]
[331171613,1720117840298,-35022.4215873,0.00013688,2]
[331171615,1720117840307,-500.0,0.00013698,2]
[331171617,1720117840317,-501.36425761,0.00013698,2]
[331171619,1720117840326,-500.0,0.00013698,2]
[331171621,1720117840335,-500.0,0.00013698,2]
[331171623,1720117840345,-175.97925096,0.00013698,2]
[331171625,1720117840355,-502.89715957,0.00013698,2]
[331171626,1720117840364,-500.0,0.00013698,2]
[331171629,1720117840374,-500.0,0.00013698,2]
[331171630,1720117840383,-567.67207232,0.00013698,2]
[331171632,1720117840393,-500.0,0.00013698,2]
[331171634,1720117840403,-500.0,0.00013698,2]
[331171636,1720117840412,-500.0,0.00013698,2]
[331171638,1720117840422,-502.49986424,0.00013698,2]
[331171641,1720117840432,-514.59758607,0.00013698,2]
[331171643,1720117840443,-500.0,0.00013698,2]
[331171644,1720117840453,-500.0,0.00013698,2]
[331171647,1720117840463,-500.0,0.00013698,2]
[331171649,1720117840473,-500.0,0.00013698,2]
[331171651,1720117840483,-500.0,0.00013698,2]
[331171653,1720117840493,-500.0,0.00013698,2]
[331171655,1720117840503,-500.0,0.00013698,2]
[331171657,1720117840513,-500.0,0.00013698,2]
[331171658,1720117840523,-500.70268075,0.00013698,2]
[331171660,1720117840532,-235.50231353,0.00013698,2]
[331171662,1720117840542,-500.0,0.00013698,2]
[331171665,1720117840552,-500.0,0.00013698,2]
[331171668,1720117840562,-500.0,0.00013698,2]
[331171671,1720117840575,-500.0,0.00013698,2]
[331171673,1720117840588,-731.52,0.00013698,2]
[331171674,1720117840598,-500.0,0.00013698,2]
[331171676,1720117840607,-311.85933168,0.00013698,2]
[331171679,1720117840618,-500.0,0.00013698,2]
[331171681,1720117840628,-500.0,0.00013698,2]
[331171683,1720117840638,-500.0,0.00013698,2]
[331171685,1720117840648,-429.88288086,0.00013698,2]
[331171687,1720117840662,-739.73,0.00013698,2]
[331171689,1720117840673,-500.0,0.00013698,2]
[331171691,1720117840683,-500.0,0.00013698,2]
[331171693,1720117840693,-500.0,0.00013698,2]
[331171695,1720117840703,-500.0,0.00013698,2]
[331171697,1720117840713,-497.84591713,0.00013698,2]
[331171698,1720117840722,-500.0,0.00013698,2]
[331171701,1720117840732,-500.0,0.00013698,2]
[331171703,1720117840741,-500.0,0.00013698,2]
[331171705,1720117840750,-506.39025932,0.00013698,2]
[331171707,1720117840759,-504.04088921,0.00013698,2]
[331171708,1720117840768,-500.0,0.00013698,2]
[331171710,1720117840778,-516.42583207,0.00013698,2]
[331171713,1720117840788,-500.0,0.00013698,2]
[331171714,1720117840797,-506.60910419,0.00013698,2]
[331171716,1720117840806,-500.0,0.00013698,2]
[331171718,1720117840815,-500.10829568,0.00013698,2]
[331171720,1720117840824,-500.0,0.00013698,2]
[331171722,1720117840834,-500.0,0.00013698,2]
[331171724,1720117840843,-495.62845761,0.00013698,2]
[331171726,1720117840852,-500.0,0.00013698,2]
[331171728,1720117840862,-500.0,0.00013698,2]
[331171730,1720117840872,-500.0,0.00013698,2]
[331171733,1720117840882,-184.24069671,0.00013698,2]
[331171735,1720117840891,-500.0,0.00013698,2]
[331171736,1720117840901,-500.0,0.00013698,2]
[331171739,1720117840910,-500.0,0.00013698,2]
[331171740,1720117840919,-500.0,0.00013698,2]
[331171743,1720117840929,-500.0,0.00013698,2]
[331171745,1720117840938,-500.0,0.00013698,2]
[331171746,1720117840948,-509.95308106,0.00013698,2]
[331171748,1720117840957,-511.49372952,0.00013698,2]
[331171750,1720117840967,-500.0,0.00013698,2]
[331171752,1720117840976,-500.0,0.00013698,2]
[331171754,1720117840985,-500.0,0.00013698,2]
[331171756,1720117840994,-500.0,0.00013698,2]
[331171758,1720117841003,-500.0,0.00013698,2]
[331171760,1720117841013,-500.0,0.00013698,2]
[331171762,1720117841022,-595.7,0.00013698,2]
[331171764,1720117841032,-500.0,0.00013698,2]
[331171766,1720117841041,-500.0,0.00013698,2]
[331171768,1720117841050,-500.0,0.00013698,2]
[331171770,1720117841059,-500.0,0.00013698,2]
[331171772,1720117841069,-502.68691975,0.00013698,2]
[331171774,1720117841078,-500.0,0.00013698,2]
[331171776,1720117841088,-500.0,0.00013698,2]
[331171778,1720117841097,-500.0,0.00013698,2]
[331171780,1720117841107,-500.0,0.00013698,2]
[331171782,1720117841116,-500.0,0.00013698,2]
[331171784,1720117841126,-500.0,0.00013698,2]
[331171786,1720117841136,-526.18308385,0.00013698,2]
[331171788,1720117841145,-512.67373948,0.00013698,2]
[331171790,1720117841154,-500.0,0.00013698,2]
[331171792,1720117841164,-503.32783677,0.00013698,2]
[331171794,1720117841173,-505.97981691,0.00013698,2]
[331171796,1720117841182,-639.30577765,0.00013698,2]
[331171798,1720117841192,-500.0,0.00013698,2]
[331171800,1720117841202,-500.0,0.00013698,2]
[331171802,1720117841212,-500.0,0.00013698,2]
[331171804,1720117841221,-500.0,0.00013698,2]
[331171806,1720117841230,-520.88959233,0.00013698,2]
[331171808,1720117841241,-500.0,0.00013698,2]
[331171810,1720117841250,-555.76,0.00013698,2]
[331171812,1720117841261,-500.0,0.00013698,2]
[331171814,1720117841271,-500.0,0.00013698,2]
[331171816,1720117841281,-518.95404305,0.00013698,2]
[331171817,1720117841290,-500.0,0.00013698,2]
[331171819,1720117841300,-500.0,0.00013698,2]
[331171821,1720117841309,-500.0,0.00013698,2]
[331171823,1720117841318,-500.0,0.00013698,2]
[331171825,1720117841327,-500.0,0.00013698,2]
[331171827,1720117841336,-500.0,0.00013698,2]
[331171829,1720117841345,-500.0,0.00013698,2]
[331171831,1720117841354,-502.604327,0.00013698,2]
[331171833,1720117841363,-503.51893587,0.00013698,2]
[331171835,1720117841372,-500.0,0.00013698,2]
[331171837,1720117841381,-500.0,0.00013698,2]
[331171839,1720117841390,-500.0,0.00013698,2]
[331171841,1720117841399,-500.0,0.00013698,2]
[331171843,1720117841408,-169.57752147,0.00013698,2]
[331171844,1720117841417,-500.0,0.00013698,2]
[331171846,1720117841426,-500.0,0.00013698,2]
[331171848,1720117841435,-500.0,0.00013698,2]
[331171850,1720117841446,-500.0,0.00013698,2]
[331171852,1720117841455,-500.0,0.00013698,2]
[331171853,1720117841463,-500.0,0.00013698,2]
[331171854,1720117841472,-503.71033226,0.00013698,2]
[331171855,1720117841482,-500.0,0.00013698,2]
[331171857,1720117841491,-503.89990542,0.00013698,2]
[331171858,1720117841500,-500.0,0.00013698,2]
[331171860,1720117841509,-500.0,0.00013698,2]
[331171862,1720117841519,-500.0,0.00013698,2]
[331171864,1720117841528,-500.0,0.00013698,2]
[331171866,1720117841538,-505.70846594,0.00013698,2]
[331171868,1720117841546,-500.0,0.00013698,2]
[331171870,1720117841555,-6504.33,0.00013698,2]
[331171872,1720117841564,-500.0,0.00013698,2]
[331171874,1720117841578,-500.0,0.00013698,2]
[331171876,1720117841587,-500.0,0.00013698,2]
[331171878,1720117841597,-541.16192918,0.00013698,2]
[331171880,1720117841607,-500.0,0.00013698,2]
[331171882,1720117841618,-500.0,0.00013698,2]
[331171883,1720117841627,-501.42338525,0.00013698,2]
[331171885,1720117841637,-500.0,0.00013698,2]
[331171887,1720117841646,-500.0,0.00013698,2]
[331171889,1720117841656,-500.0,0.00013698,2]
[331171891,1720117841666,-500.0,0.00013698,2]
[331171892,1720117841675,-475.0,0.00013698,2]
[331171894,1720117841685,-635.80447038,0.00013698,2]
[331171896,1720117841694,-502.66788275,0.00013698,2]
[331171898,1720117841704,-500.0,0.00013698,2]
[331171900,1720117841713,-504.09733249,0.00013698,2]
[331171902,1720117841722,-500.0,0.00013698,2]
[331171904,1720117841731,-500.0,0.00013698,2]
[331171906,1720117841740,-500.0,0.00013698,2]
[331171908,1720117841750,-500.0,0.00013698,2]
[331171910,1720117841758,-3549.21,0.00013698,2]
[331171912,1720117841767,-500.0,0.00013698,2]
[331171914,1720117841776,-500.0,0.00013698,2]
[331171916,1720117841786,-500.0,0.00013698,2]
[331171918,1720117841795,-500.0,0.00013698,2]
[331171919,1720117841804,-599.81,0.00013698,2]
[331171921,1720117841812,-500.0,0.00013698,2]
[331171923,1720117841821,-500.0,0.00013698,2]
[331171925,1720117841831,-500.0,0.00013698,2]
[331171927,1720117841839,-522.57,0.00013698,2]
[331171929,1720117841848,-1094.92,0.00013698,2]
[331171931,1720117841857,-500.0,0.00013698,2]
[331171933,1720117841867,-500.0,0.00013698,2]
[331171935,1720117841876,-500.0,0.00013698,2]
[331171937,1720117841885,-500.0,0.00013698,2]
[331171939,1720117841893,-500.0,0.00013698,2]
[331171941,1720117841902,-500.0,0.00013698,2]
[331171943,1720117841911,-500.0,0.00013698,2]
[331171945,1720117841920,-491.53248421,0.00013698,2]
[331171946,1720117841929,-1393.66,0.00013698,2]
[331171948,1720117841938,-500.0,0.00013698,2]
[331171950,1720117841947,-500.0,0.00013698,2]
[331171952,1720117841956,-500.0,0.00013698,2]
[331171954,1720117841965,-500.0,0.00013698,2]
[331171956,1720117841974,-500.0,0.00013698,2]
[331171958,1720117841983,-188.09167626,0.00013698,2]
[331171960,1720117841993,-515.68,0.00013698,2]
[331171962,1720117842002,-500.0,0.00013698,2]
[331171964,1720117842010,-500.0,0.00013698,2]
[331171966,1720117842020,-500.0,0.00013698,2]
[331171968,1720117842028,-500.0,0.00013698,2]
[331171970,1720117842037,-605.62631384,0.00013698,2]
[331171971,1720117842046,-500.0,0.00013698,2]
[331171972,1720117842055,-500.0,0.00013698,2]
[331171973,1720117842064,-500.0,0.00013698,2]
[331171974,1720117842073,-500.0,0.00013698,2]
[331171975,1720117842082,-500.0,0.00013698,2]
[331171976,1720117842091,-500.0,0.00013698,2]
[331171977,1720117842100,-500.0,0.00013698,2]
[331171978,1720117842109,-500.0,0.00013698,2]
[331171979,1720117842118,-500.0,0.00013698,2]
[331171980,1720117842127,-500.0,0.00013698,2]
[331171981,1720117842136,-500.0,0.00013698,2]
[331171982,1720117842145,-500.0,0.00013698,2]
[331171983,1720117842154,-500.0,0.00013698,2]
[331171984,1720117842164,-505.02118583,0.00013698,2]
[331171985,1720117842173,-500.0,0.00013698,2]
[331171986,1720117842182,-537.37123027,0.00013698,2]
[331171987,1720117842191,-500.0,0.00013698,2]
[331171988,1720117842202,-500.0,0.00013698,2]
[331171989,1720117842212,-500.0,0.00013698,2]
[331171990,1720117842224,-500.0,0.00013698,2]
[331171991,1720117842234,-500.0,0.00013698,2]
[331171993,1720117842246,-361.23,0.00013698,2]
[331171994,1720117842257,-500.0,0.00013698,2]
[331171996,1720117842267,-962.93,0.00013698,2]
[331171998,1720117842276,-501.23223734,0.00013698,2]
[331171999,1720117842286,-591.44,0.00013698,2]
[331172001,1720117842295,-500.0,0.00013698,2]
[331172003,1720117842305,-500.0,0.00013698,2]
[331172005,1720117842314,-500.0,0.00013698,2]
[331172006,1720117842323,-1145.73,0.00013698,2]
[331172008,1720117842332,-500.0,0.00013698,2]
[331172010,1720117842341,-500.0,0.00013698,2]
[331172011,1720117842351,-501.11947081,0.00013698,2]
[331172013,1720117842360,-500.0,0.00013698,2]
[331172015,1720117842369,-500.0,0.00013698,2]
[331172017,1720117842379,-686.97,0.00013698,2]
[331172018,1720117842387,-500.0,0.00013698,2]
[331172020,1720117842397,-500.0,0.00013698,2]
[331172022,1720117842406,-500.0,0.00013698,2]
[331172023,1720117842414,-500.0,0.00013698,2]
[331172025,1720117842424,-514.83462057,0.00013698,2]
[331172027,1720117842433,-203.35329202,0.00013698,2]
[331172029,1720117842442,-500.0,0.00013698,2]
[331172031,1720117842455,-500.0,0.00013698,2]
[331172033,1720117842464,-500.0,0.00013698,2]
[331172035,1720117842473,-500.0,0.00013698,2]
[331172036,1720117842483,-689.93,0.00013698,2]
[331172046,1720117842582,-500.0,0.00013698,2]
[331172048,1720117842609,-500.0,0.00013698,2]
[331172050,1720117842619,-500.0,0.00013698,2]
[331172052,1720117842628,-561.16821501,0.00013698,2]
[331172054,1720117842638,-500.0,0.00013698,2]
[331172056,1720117842647,-605.13,0.00013698,2]
[331172057,1720117842657,-500.0,0.00013698,2]
[331172059,1720117842668,-513.32,0.00013698,2]
[331172061,1720117842677,-500.0,0.00013698,2]
[331172063,1720117842687,-500.0,0.00013698,2]
[331172064,1720117842696,-500.0,0.00013698,2]
[331172066,1720117842708,-500.0,0.00013698,2]
[331172068,1720117842718,-500.0,0.00013698,2]
[331172070,1720117842727,-511.35171382,0.00013698,2]
[331172072,1720117842739,-471.00978429,0.00013698,2]
[331172073,1720117842748,-500.0,0.00013698,2]
[331172075,1720117842757,-500.0,0.00013698,2]
[331172077,1720117842767,-500.0,0.00013698,2]
[331172078,1720117842776,-500.0,0.00013698,2]
[331172079,1720117842785,-298.14382266,0.00013698,2]
[331172080,1720117842794,-500.0,0.00013698,2]
[331172081,1720117842803,-500.0,0.00013698,2]
[331172082,1720117842812,-500.0,0.00013698,2]
[331172083,1720117842821,-500.0,0.00013698,2]
[331172084,1720117842830,-500.0,0.00013698,2]
[331172085,1720117842839,-500.0,0.00013698,2]
[331172086,1720117842848,-500.0,0.00013698,2]
[331172087,1720117842857,-500.0,0.00013698,2]
[331172088,1720117842866,-500.0,0.00013698,2]
[331172089,1720117842875,-500.0,0.00013698,2]
[331172090,1720117842884,-500.0,0.00013698,2]
[331172092,1720117842893,-500.0,0.00013698,2]
[331172093,1720117842902,-500.0,0.00013698,2]
[331172094,1720117842911,-500.0,0.00013698,2]
[331172095,1720117842920,-500.0,0.00013698,2]
[331172096,1720117842929,-500.0,0.00013698,2]
[331172097,1720117842938,-500.0,0.00013698,2]
[331172098,1720117842949,-517.27090328,0.00013698,2]
[331172099,1720117842958,-500.0,0.00013698,2]
[331172102,1720117842968,-667.91,0.00013698,2]
[331172105,1720117842978,-395.96833095,0.00013698,2]
[331172107,1720117842987,-500.0,0.00013698,2]
[331172110,1720117842996,-500.0,0.00013698,2]
[331172111,1720117843006,-500.0,0.00013698,2]
[331172112,1720117843015,-500.0,0.00013698,2]
[331172113,1720117843025,-500.0,0.00013698,2]
[331172115,1720117843034,-500.0,0.00013698,2]
[331172116,1720117843043,-500.0,0.00013698,2]
[331172119,1720117843053,-500.0,0.00013698,2]
[331172122,1720117843062,-500.0,0.00013698,2]
[331172126,1720117843070,-500.0,0.00013698,2]
[331172128,1720117843079,-500.0,0.00013698,2]
[331172131,1720117843088,-500.0,0.00013698,2]
[331172134,1720117843097,-500.0,0.00013698,2]
[331172135,1720117843106,-500.0,0.00013698,2]
[331172137,1720117843115,-507.12897087,0.00013698,2]
[331172139,1720117843124,-500.0,0.00013698,2]
[331172141,1720117843132,-500.0,0.00013698,2]
[331172142,1720117843141,-500.0,0.00013698,2]
[331172144,1720117843150,-500.0,0.00013698,2]
[331172146,1720117843159,-500.0,0.00013698,2]
[331172148,1720117843168,-500.0,0.00013698,2]
[331172150,1720117843177,-352.06217992,0.00013698,2]
[331172152,1720117843186,-500.0,0.00013698,2]
[331172153,1720117843195,-500.0,0.00013698,2]
[331172155,1720117843205,-500.0,0.00013698,2]
[331172157,1720117843214,-500.0,0.00013698,2]
[331172159,1720117843223,-500.0,0.00013698,2]
[331172161,1720117843233,-500.0,0.00013698,2]
[331172163,1720117843242,-176.26043966,0.00013698,2]
[331172165,1720117843252,-500.0,0.00013698,2]
[331172167,1720117843262,-500.0,0.00013698,2]
[331172168,1720117843271,-198.00070053,0.00013698,2]
[331172170,1720117843280,-500.0,0.00013698,2]
[331172172,1720117843289,-500.0,0.00013698,2]
[331172174,1720117843298,-500.0,0.00013698,2]
[331172176,1720117843307,-500.0,0.00013698,2]
[331172178,1720117843316,-500.0,0.00013698,2]
[331172180,1720117843325,-500.0,0.00013698,2]
[331172182,1720117843334,-500.0,0.00013698,2]
[331172184,1720117843343,-500.0,0.00013698,2]
[331172185,1720117843352,-500.0,0.00013698,2]
[331172187,1720117843361,-500.0,0.00013698,2]
[331172189,1720117843370,-500.0,0.00013698,2]
[331172191,1720117843380,-500.0,0.00013698,2]
[331172193,1720117843389,-500.0,0.00013698,2]
[331172195,1720117843399,-500.0,0.00013698,2]
[331172197,1720117843409,-500.0,0.00013698,2]
[331172199,1720117843419,-500.0,0.00013698,2]
[331172201,1720117843428,-7275.38,0.00013698,2]
[331172203,1720117843437,-500.0,0.00013698,2]
[331172204,1720117843448,-500.0,0.00013698,2]
[331172206,1720117843462,-500.0,0.00013698,2]
[331172208,1720117843472,-500.0,0.00013698,2]
[331172210,1720117843482,-500.0,0.00013698,2]
[331172212,1720117843492,-500.0,0.00013698,2]
[331172214,1720117843502,-501.08516647,0.00013698,2]
[331172216,1720117843512,-500.0,0.00013698,2]
[331172218,1720117843521,-500.0,0.00013698,2]
[331172220,1720117843531,-500.0,0.00013698,2]
[331172222,1720117843541,-500.0,0.00013698,2]
[331172224,1720117843550,-500.0,0.00013698,2]
[331172225,1720117843559,-504.35534164,0.00013698,2]
[331172227,1720117843570,-500.0,0.00013698,2]
[331172229,1720117843580,-500.0,0.00013698,2]
[331172231,1720117843592,-500.0,0.00013698,2]
[331172233,1720117843601,-500.0,0.00013698,2]
[331172235,1720117843611,-506.75248737,0.00013698,2]
[331172237,1720117843621,-500.0,0.00013698,2]
[331172239,1720117843631,-500.0,0.00013698,2]
[331172241,1720117843639,-503.22908055,0.00013698,2]
[331172242,1720117843649,-500.0,0.00013698,2]
[331172244,1720117843661,-500.0,0.00013698,2]
[331172246,1720117843670,-500.0,0.00013698,2]
[331172248,1720117843679,-506.76700847,0.00013698,2]
[331172250,1720117843689,-757.2,0.00013698,2]
[331172252,1720117843701,-500.0,0.00013698,2]
[331172254,1720117843710,-500.0,0.00013698,2]
[331172256,1720117843720,-500.0,0.00013698,2]
[331172257,1720117843729,-500.0,0.00013698,2]
[331172259,1720117843739,-500.0,0.00013698,2]
[331172261,1720117843748,-500.0,0.00013698,2]
[331172263,1720117843757,-500.0,0.00013698,2]
[331172265,1720117843767,-500.0,0.00013698,2]
[331172267,1720117843777,-506.59603972,0.00013698,2]
[331172269,1720117843786,-500.0,0.00013698,2]
[331172271,1720117843795,-500.0,0.00013698,2]
[331172272,1720117843804,-500.0,0.00013698,2]
[331172274,1720117843814,-500.0,0.00013698,2]
[331172276,1720117843824,-340.41059684,0.00013698,2]
[331172278,1720117843833,-500.0,0.00013698,2]
[331172280,1720117843842,-500.0,0.00013698,2]
[331172282,1720117843852,-500.0,0.00013698,2]
[331172284,1720117843861,-500.0,0.00013698,2]
[331172286,1720117843871,-542.59,0.00013698,2]
[331172288,1720117843879,-500.0,0.00013698,2]
[331172290,1720117843889,-500.0,0.00013698,2]
[331172292,1720117843898,-500.0,0.00013698,2]
[331172294,1720117843907,-577.32163834,0.00013698,2]
[331172296,1720117843917,-500.0,0.00013698,2]
[331172298,1720117843926,-500.0,0.00013698,2]
[331172301,1720117843935,-500.0,0.00013698,2]
[331172304,1720117843945,-500.0,0.00013698,2]
[331172307,1720117843956,-500.0,0.00013698,2]
[331172310,1720117843965,-1625.47,0.00013698,2]
[331172314,1720117843975,-500.0,0.00013698,2]
[331172318,1720117843984,-500.0,0.00013698,2]
[331172322,1720117843994,-500.0,0.00013698,2]
[331172325,1720117844003,-806.18,0.00013698,2]
[331172328,1720117844013,-500.0,0.00013698,2]
[331172330,1720117844022,-500.0,0.00013698,2]
[331172332,1720117844032,-345.21076198,0.00013698,2]
[331172334,1720117844041,-506.23553151,0.00013698,2]
[331172336,1720117844050,-500.0,0.00013698,2]
[331172338,1720117844059,-500.0,0.00013698,2]
[331172340,1720117844069,-500.0,0.00013698,2]
[331172342,1720117844078,-500.0,0.00013698,2]
[331172344,1720117844087,-500.0,0.00013698,2]
[331172346,1720117844096,-2514.23,0.00013698,2]
[331172348,1720117844105,-500.0,0.00013698,2]
[331172350,1720117844114,-508.25109994,0.00013698,2]
[331172352,1720117844124,-500.0,0.00013698,2]
[331172354,1720117844133,-500.0,0.00013698,2]
[331172356,1720117844142,-500.0,0.00013698,2]
[331172357,1720117844152,-500.0,0.00013698,2]
[331172358,1720117844161,-500.0,0.00013698,2]
[331172360,1720117844171,-387.46620817,0.00013698,2]
[331172362,1720117844179,-500.0,0.00013698,2]
[331172364,1720117844188,-500.0,0.00013698,2]
[331172366,1720117844199,-500.0,0.00013698,2]
[331172368,1720117844208,-500.0,0.00013698,2]
[331172370,1720117844217,-1322.64,0.00013698,2]
[331172372,1720117844226,-500.0,0.00013698,2]
[331172374,1720117844235,-500.0,0.00013698,2]
[331172376,1720117844245,-636.56817691,0.00013698,2]
[331172378,1720117844254,-500.0,0.00013698,2]
[331172380,1720117844265,-500.0,0.00013698,2]
[331172381,1720117844274,-500.0,0.00013698,2]
[331172382,1720117844283,-500.0,0.00013698,2]
[331172383,1720117844292,-500.0,0.00013698,2]
[331172384,1720117844301,-501.61006172,0.00013698,2]
[331172385,1720117844310,-500.0,0.00013698,2]
[331172386,1720117844319,-500.0,0.00013698,2]
[331172387,1720117844328,-500.0,0.00013698,2]
[331172388,1720117844338,-500.0,0.00013698,2]
[331172389,1720117844347,-500.0,0.00013698,2]
[331172390,1720117844357,-857.86,0.00013698,2]
[331172391,1720117844366,-500.0,0.00013698,2]
[331172392,1720117844375,-500.0,0.00013698,2]
[331172393,1720117844384,-788.08,0.00013698,2]
[331172394,1720117844393,-188.87247166,0.00013698,2]
[331172395,1720117844402,-500.0,0.00013698,2]
[331172396,1720117844412,-500.0,0.00013698,2]
[331172397,1720117844421,-500.0,0.00013698,2]
[331172398,1720117844430,-4284.6,0.00013698,2]
[331172399,1720117844439,-500.0,0.00013698,2]